bitfinex/quotes_SOLUSD_20240705
["timestamp","ask_amount","ask_price","bid_price","bid_amount"]
[1720195709360,0.17,134.29,134.19,404.23]
[1720195710476,7.4441,134.34,134.19,404.23]
[1720195710652,28.2530706,134.37,134.19,404.23]
[1720195710653,24.38154647,134.37,134.2,0.17]
[1720195710963,24.38154647,134.37,134.21,0.03]
[1720195711383,7.4452,134.32,134.21,0.03]
[1720195711668,24.38154647,134.37,134.21,0.03]
[1720195711669,7.4463,134.3,134.21,0.03]
[1720195711867,18.6081,134.35,134.21,0.03]
[1720195712069,18.6081,134.35,134.19,404.2]
[1720195712070,7.4458,134.31,134.2,0.03]
[1720195712270,0.17,134.3,134.2,0.03]
[1720195712576,0.17,134.3,134.22,0.03]
[1720195712876,5.77534647,134.37,134.22,384.23]
[1720195713051,7.4422,134.37,134.23,20.2]
[1720195713252,7.4417,134.38,134.23,135.2]
[1720195713454,7.4411,134.39,134.24,0.03]
[1720195713674,7.4422,134.37,134.24,384.23]
[1720195713848,7.4427,134.36,134.25,20.0]
[1720195714046,107.70209998,134.43,134.25,20.0]
[1720195714047,3.87152413,134.42,134.25,20.0]
[1720195714375,7.4424,134.37,134.26,0.2]
[1720195714573,7.4433,134.35,134.26,0.03]
[1720195714885,7.4433,134.35,134.27,0.03]
[1720195715177,7.4423,134.37,134.28,0.03]
[1720195715345,20.0,134.36,134.26,0.03]
[1720195715962,148.76972411,134.43,134.26,0.03]
[1720195715963,7.4436,134.35,134.26,0.03]
[1720195716249,7.4438,134.34,134.26,0.03]
[1720195716463,0.17,134.34,134.26,0.03]
[1720195716748,7.4446,134.33,134.26,0.03]
[1720195716948,7.6149,134.32,134.26,0.03]
[1720195717145,7.4449,134.32,134.26,0.03]
[1720195717387,0.17,134.31,134.27,0.03]
[1720195717781,7.4467,134.29,134.21,0.03]
[1720195717984,0.17,134.28,134.2,641.7]
[1720195718274,0.17,134.28,134.16,5.85557848]
[1720195718275,20.17,134.28,134.21,0.03]
[1720195718672,20.17,134.28,134.22,0.03]
[1720195718876,7.6172,134.28,134.22,0.03]
[1720195719085,7.4477,134.27,134.17,0.03]
[1720195719378,0.17,134.26,134.17,0.03]
[1720195720091,20.17,134.27,134.17,0.03]
[1720195720575,27.6177,134.27,134.17,0.03]
[1720195720755,20.17,134.27,134.17,0.03]
[1720195720957,7.6181,134.27,134.17,0.03]
[1720195721180,7.4487,134.26,134.17,0.03]
[1720195721385,0.17,134.25,134.17,0.03]
[1720195721679,0.17,134.25,134.18,0.03]
[1720195722060,7.6191,134.25,134.15,0.03]
[1720195722268,7.6191,134.25,134.19,0.03]
[1720195722472,7.6191,134.25,134.15,0.03]
[1720195722657,0.17,134.25,134.2,0.03]
[1720195723163,0.17,134.25,134.14,20.37398602]
[1720195723164,0.17,134.25,134.21,0.03]
[1720195723363,0.17,134.26,134.21,0.03]
[1720195723568,7.6183,134.26,134.22,0.03]
[1720195723759,20.0,134.25,134.22,0.03]
[1720195724078,20.0,134.25,134.15,0.03]
[1720195724262,0.17,134.24,134.15,0.03]
[1720195724889,0.17,134.24,134.16,16.5421]
[1720195725068,0.17,134.25,134.16,23.0021]
[1720195725269,20.17,134.25,134.17,20.03]
[1720195725785,0.17,134.25,134.18,0.03]
[1720195727473,20.0,134.27,134.18,0.03]
[1720195728071,7.4485,134.26,134.18,0.03]
[1720195728265,20.0,134.27,134.18,0.03]
[1720195728266,7.4494,134.24,134.18,0.03]
[1720195728471,47.15,134.27,134.18,0.03]
[1720195728765,7.451,134.21,134.18,0.03]
[1720195728985,0.17,134.2,134.18,0.03]
[1720195729162,0.17,134.2,134.15,0.03]
[1720195729359,0.17,134.2,134.19,0.03]
[1720195729576,0.17,134.2,134.15,0.03]
[1720195729907,0.17,134.21,134.15,0.03]
[1720195730272,0.17,134.22,134.15,0.03]
[1720195731595,7.4491,134.25,134.15,0.03]
[1720195731772,27.15,134.27,134.15,0.03]
[1720195732170,27.15,134.27,134.15,20.03]
[1720195732171,7.4496,134.24,134.15,20.03]
[1720195732502,45.7692,134.27,134.15,0.03]
[1720195732676,7.4505,134.22,134.15,0.03]
[1720195732875,0.17,134.21,134.15,0.03]
[1720195733589,20.17,134.22,134.15,0.03]
[1720195734378,0.17,134.22,134.15,0.03]
[1720195734708,20.17,134.23,134.15,0.03]
[1720195735479,0.17,134.23,134.15,0.03]
[1720195735703,20.17,134.24,134.15,0.03]
[1720195736478,0.17,134.24,134.15,0.03]
[1720195736690,7.6191,134.25,134.15,0.03]
[1720195736887,7.4493,134.24,134.15,0.03]
[1720195737277,7.4499,134.23,134.15,0.03]
[1720195738195,0.17,134.22,134.15,0.03]
[1720195739597,7.69827907,134.27,134.15,0.03]
[1720195739810,20.0,134.26,134.15,384.23]
[1720195739974,20.0,134.26,134.16,20.0]
[1720195740486,7.4483,134.26,134.17,0.03]
[1720195741197,7.4484,134.26,134.17,0.03]
[1720195741387,7.6188,134.25,134.17,0.03]
[1720195741584,7.4494,134.24,134.17,0.03]
[1720195741807,0.17,134.23,134.17,0.03]
[1720195742678,20.17,134.24,134.17,0.03]
[1720195745279,20.17,134.24,134.18,0.03]
[1720195745610,20.17,134.24,134.19,0.03]
[1720195745901,11.94026712,134.28,134.15,0.03]
[1720195746109,5.84256712,134.28,134.15,27.35]
[1720195746284,7.4474,134.28,134.16,20.0]
[1720195746704,7.4482,134.26,134.17,0.03]
[1720195747004,7.4488,134.25,134.17,0.03]
[1720195747383,7.4488,134.25,134.15,20.0]
[1720195747384,0.17,134.24,134.18,0.03]
[1720195747619,11.56898827,134.31,134.18,0.03]
[1720195747773,7.4456,134.31,134.19,0.03]
[1720195748197,7.4456,134.31,134.19,20.03]
[1720195748409,7.4459,134.31,134.2,0.03]
[1720195748616,7.446,134.3,134.2,0.03]
[1720195749303,7.4456,134.31,134.19,20.0]
[1720195749918,7.4456,134.31,134.2,0.03]
[1720195750517,7.4451,134.32,134.2,0.03]
[1720195751100,7.4455,134.31,134.2,0.03]
[1720195751315,0.17,134.3,134.2,0.03]
[1720195751791,7.4472,134.28,134.2,0.03]
[1720195751987,20.17,134.27,134.2,0.03]
[1720195752596,0.17,134.27,134.2,0.03]
[1720195752829,0.17,134.28,134.2,0.03]
[1720195753139,7.6174,134.28,134.2,0.03]
[1720195753418,27.4476,134.27,134.2,0.03]
[1720195753592,0.17,134.26,134.2,0.03]
[1720195754324,20.17,134.27,134.2,0.03]
[1720195754493,27.6178,134.27,134.2,0.03]
[1720195755712,7.4487,134.26,134.2,0.03]
[1720195756023,0.17,134.25,134.2,0.03]
[1720195756321,7.6191,134.25,134.2,0.03]
[1720195756519,0.17,134.25,134.2,0.03]
[1720195756695,20.17,134.25,134.2,0.03]
[1720195757230,27.6189,134.25,134.2,0.03]
[1720195757602,20.17,134.25,134.2,0.03]
[1720195758300,0.17,134.25,134.2,0.03]
[1720195758507,0.17,134.26,134.2,0.03]
[1720195759415,6.0138,134.3,134.2,0.03]
[1720195759416,7.4461,134.3,134.2,0.03]
[1720195759718,7.4465,134.29,134.2,0.03]
[1720195760227,27.15,134.31,134.2,0.03]
[1720195760396,7.4485,134.26,134.2,0.03]
[1720195760597,7.4484,134.26,134.2,0.03]
[1720195760799,20.0,134.25,134.2,0.03]
[1720195761219,9.72405658,134.31,134.2,0.03]
[1720195761220,7.447,134.29,134.2,0.03]
[1720195761399,0.17,134.26,134.2,0.03]
[1720195761604,0.17,134.27,134.2,0.03]
[1720195762221,20.0,134.28,134.2,0.03]
[1720195762595,27.4471,134.28,134.2,0.03]
[1720195763018,7.4478,134.27,134.2,0.03]
[1720195763427,0.17,134.26,134.2,0.03]
[1720195764017,7.6182,134.26,134.2,0.03]
[1720195764708,0.17,134.26,134.2,0.03]
[1720195765110,0.17,134.27,134.2,0.03]
[1720195765628,13.28171497,134.31,134.2,0.03]
[1720195765813,13.28171497,134.31,134.2,20.03]
[1720195766212,7.4461,134.3,134.21,0.03]
[1720195766409,7.4466,134.29,134.21,0.03]
[1720195766628,33.04856567,134.32,134.21,0.03]
[1720195766825,7.4472,134.28,134.21,0.03]
[1720195767129,0.17,134.27,134.21,0.03]
[1720195767526,0.17,134.27,134.22,0.03]
[1720195767833,0.17,134.27,134.2,0.03]
[1720195768016,20.17,134.28,134.2,0.03]
[1720195768631,27.6171,134.28,134.2,0.03]
[1720195768836,7.6171,134.28,134.2,0.03]
[1720195769010,20.0,134.27,134.2,0.03]
[1720195769211,0.17,134.26,134.2,0.03]
[1720195770324,3.8966967,134.31,134.2,20.03]
[1720195770325,7.4457,134.31,134.2,20.03]
[1720195770522,7.4455,134.31,134.2,20.03]
[1720195770714,7.4455,134.31,134.21,0.03]
[1720195771512,7.446,134.3,134.21,0.03]
[1720195771718,7.6166,134.29,134.21,0.03]
[1720195771920,7.446,134.3,134.21,0.03]
[1720195772503,7.4471,134.28,134.21,0.03]
[1720195772707,27.4477,134.27,134.21,0.03]
[1720195772928,27.4477,134.27,134.2,0.03]
[1720195773310,0.17,134.26,134.2,0.03]
[1720195775111,20.0,134.27,134.2,0.03]
[1720195775335,27.15,134.3,134.2,0.03]
[1720195775541,20.0,134.29,134.2,0.03]
[1720195776132,7.4475,134.28,134.2,0.03]
[1720195776311,27.4468,134.29,134.2,0.03]
[1720195776733,0.17,134.28,134.2,0.03]
[1720195777920,27.4468,134.29,134.2,0.03]
[1720195778436,7.4472,134.28,134.2,0.03]
[1720195779012,7.4477,134.27,134.2,0.03]
[1720195779539,0.17,134.26,134.2,0.03]
[1720195779920,27.4468,134.29,134.2,0.03]
[1720195780136,7.6172,134.28,134.2,0.03]
[1720195780324,7.4478,134.27,134.2,0.03]
[1720195780526,0.17,134.26,134.2,0.03]
[1720195781546,7.6184,134.26,134.2,0.03]
[1720195782218,0.17,134.26,134.2,0.03]
[1720195782745,7.6182,134.26,134.2,0.03]
[1720195783123,0.17,134.26,134.2,0.03]
[1720195783320,7.449,134.25,134.2,0.03]
[1720195783547,0.17,134.24,134.2,0.03]
[1720195785343,0.17,134.25,134.2,0.03]
[1720195786050,7.4472,134.28,134.2,0.03]
[1720195786222,7.4464,134.3,134.2,0.03]
[1720195786416,7.4455,134.31,134.2,0.03]
[1720195786622,37.65976379,134.33,134.2,20.03]
[1720195786937,37.65976379,134.33,134.21,0.03]
[1720195787138,7.4461,134.3,134.21,0.03]
[1720195787327,7.4469,134.29,134.21,0.03]
[1720195787742,0.17,134.28,134.21,0.03]
[1720195788246,7.6166,134.29,134.21,0.03]
[1720195789228,0.17,134.29,134.21,0.03]
[1720195790853,7.4472,134.28,134.22,0.03]
[1720195791171,0.17,134.27,134.23,0.03]
[1720195791448,0.17,134.27,134.2,0.03]
[1720195791645,0.17,134.27,134.24,0.03]
[1720195791850,0.17,134.27,134.2,20.03]
[1720195792148,0.17,134.27,134.21,0.03]
[1720195792355,0.17,134.28,134.21,0.03]
[1720195792540,7.6172,134.28,134.21,0.03]
[1720195793849,7.4477,134.27,134.21,0.03]
[1720195794048,0.17,134.26,134.21,0.03]
[1720195794350,0.17,134.28,134.2,0.03]
[1720195794553,20.17,134.28,134.22,0.03]
[1720195794750,0.17,134.28,134.22,0.03]
[1720195794938,0.17,134.29,134.2,0.03]
[1720195795133,0.17,134.29,134.2,20.03]
[1720195795332,7.6166,134.29,134.2,0.03]
[1720195795549,0.17,134.29,134.21,0.03]
[1720195796834,20.17,134.3,134.21,0.03]
[1720195797555,27.616,134.3,134.21,0.03]
[1720195797932,20.17,134.3,134.21,0.03]
[1720195798353,7.4466,134.29,134.21,0.03]
[1720195798629,0.17,134.28,134.21,0.03]
[1720195799153,7.6172,134.28,134.21,0.03]
[1720195800143,0.17,134.28,134.21,0.03]
[1720195801060,27.4462,134.3,134.21,0.03]
[1720195801061,0.17,134.29,134.21,0.03]
[1720195802563,7.6168,134.29,134.21,0.03]
[1720195803630,0.17,134.29,134.21,0.03]
[1720195803933,9.76585756,134.33,134.26,13.57]
[1720195804136,13.57,134.36,134.3,13.57]
[1720195804371,13.57,134.37,134.27,20.03]
[1720195804541,3.89924982,134.39,134.32,13.57]
[1720195804858,13.57,134.37,134.33,0.03]
[1720195805179,7.7776623,134.43,134.33,13.6]
[1720195805180,11.33924982,134.41,134.33,13.6]
[1720195805460,13.57,134.4,134.35,13.57]
[1720195805667,7.7776623,134.43,134.36,13.57]
[1720195805668,17.44397653,134.43,134.36,13.57]
[1720195805837,17.44397653,134.43,134.36,0.03]
[1720195805838,13.54751091,134.43,134.36,0.03]
[1720195806166,3.89646562,134.45,134.33,0.03]
[1720195806337,7.4366,134.47,134.35,27.09]
[1720195806543,7.4366,134.47,134.36,20.0]
[1720195806754,7.4378,134.45,134.36,20.03]
[1720195806954,7.4372,134.46,134.36,20.03]
[1720195807353,7.4367,134.47,134.36,20.03]
[1720195807858,20.0,134.46,134.36,20.03]
[1720195808260,7.4382,134.45,134.36,20.03]
[1720195808765,7.4371,134.46,134.36,20.03]
[1720195809065,20.1,134.49,134.36,0.03]
[1720195809246,7.4387,134.44,134.36,0.03]
[1720195809440,7.6092,134.43,134.36,0.03]
[1720195809637,7.6092,134.43,134.34,20.03]
[1720195809848,7.6092,134.43,134.37,0.03]
[1720195810061,7.6092,134.43,134.35,0.03]
[1720195810363,7.4383,134.44,134.35,0.03]
[1720195810558,7.4383,134.44,134.36,0.03]
[1720195810856,7.4383,134.44,134.35,0.03]
[1720195811071,27.09,134.47,134.35,0.03]
[1720195811250,7.4377,134.45,134.35,0.03]
[1720195811436,20.0,134.44,134.35,0.03]
[1720195811869,0.17,134.43,134.35,0.03]
[1720195812472,45.6816,134.47,134.35,0.03]
[1720195812473,0.17,134.44,134.35,0.03]
[1720195812763,7.4416,134.38,134.35,0.03]
[1720195812975,7.4409,134.4,134.35,0.03]
[1720195813153,0.17,134.39,134.36,0.03]
[1720195813538,7.6115,134.39,134.31,0.03]
[1720195813740,7.4419,134.38,134.31,0.03]
[1720195814053,7.4419,134.38,134.29,0.03]
[1720195814239,7.4419,134.38,134.32,0.03]
[1720195814551,7.4419,134.38,134.33,0.03]
[1720195814752,0.17,134.37,134.33,0.03]
[1720195814948,0.17,134.37,134.34,0.03]
[1720195815438,0.17,134.38,134.35,0.03]
[1720195815750,0.17,134.38,134.31,6.546]
[1720195815751,7.4426,134.36,134.31,6.546]
[1720195815946,20.17,134.35,134.31,6.546]
[1720195816150,20.17,134.35,134.32,0.03]
[1720195816546,0.17,134.35,134.32,0.03]
[1720195816857,0.17,134.35,134.22,641.7]
[1720195816858,7.4441,134.34,134.22,641.7]
[1720195817062,7.4441,134.34,134.22,384.2]
[1720195817245,27.6147,134.33,134.32,0.03]
[1720195817565,20.17,134.33,134.22,384.2]
[1720195817962,20.17,134.33,134.23,0.03]
[1720195818862,7.6145,134.33,134.23,0.03]
[1720195819162,7.445,134.32,134.23,0.03]
[1720195819369,0.17,134.31,134.23,0.03]
[1720195819758,20.17,134.31,134.23,0.03]
[1720195820070,7.4462,134.3,134.24,0.03]
[1720195820244,20.17,134.29,134.24,0.03]
[1720195820566,0.17,134.29,134.19,27.09]
[1720195820749,27.4455,134.31,134.25,0.03]
[1720195820951,0.17,134.3,134.2,0.03]
[1720195821254,0.17,134.3,134.2,20.03]
[1720195821653,0.17,134.3,134.21,0.03]
[1720195822079,20.0,134.31,134.21,0.2]
[1720195822954,20.0,134.32,134.21,0.2]
[1720195823283,33.3706,134.36,134.21,0.2]
[1720195823284,5.95370711,134.34,134.22,27.09]
[1720195823567,7.4425,134.37,134.25,127.09]
[1720195823775,18.603,134.39,134.26,20.0]
[1720195823988,18.603,134.39,134.26,20.03]
[1720195824165,7.4471,134.28,134.27,0.03]
[1720195824471,7.4471,134.28,134.17,668.79]
[1720195824675,7.4467,134.29,134.17,411.29]
[1720195824847,7.4467,134.29,134.18,0.03]
[1720195825049,0.17,134.28,134.18,0.03]
[1720195825565,0.17,134.28,134.18,0.2]
[1720195825976,7.6173,134.28,134.18,0.03]
[1720195826151,7.6173,134.28,134.18,20.03]
[1720195826757,0.17,134.28,134.18,20.03]
[1720195827350,20.17,134.29,134.18,20.03]
[1720195828279,27.6167,134.29,134.18,404.23]
[1720195828466,20.17,134.29,134.18,384.23]
[1720195828777,7.4473,134.28,134.18,384.23]
[1720195829152,20.17,134.27,134.18,384.23]
[1720195830177,0.17,134.27,134.18,384.23]
[1720195832557,20.0,134.28,134.18,484.23]
[1720195832765,7.4451,134.32,134.19,47.26]
[1720195833090,7.4451,134.32,134.2,0.03]
[1720195833652,7.4454,134.31,134.2,0.03]
[1720195833953,7.446,134.3,134.2,0.03]
[1720195834156,7.446,134.3,134.2,384.23]
[1720195834354,0.17,134.29,134.2,384.23]
[1720195834556,7.6161,134.3,134.21,0.03]
[1720195834783,7.4477,134.27,134.21,0.03]
[1720195834969,7.6173,134.28,134.21,0.03]
[1720195835160,7.4477,134.27,134.21,0.03]
[1720195835480,0.17,134.26,134.21,0.03]
[1720195836081,20.0,134.28,134.21,0.03]
[1720195837379,27.4472,134.28,134.21,0.03]
[1720195837773,7.6178,134.27,134.21,0.03]
[1720195838281,7.4489,134.25,134.21,0.03]
[1720195838580,0.17,134.24,134.21,0.03]
[1720195839162,7.4504,134.22,134.21,0.03]
[1720195839359,7.4511,134.21,134.14,0.37398602]
[1720195839665,20.17,134.2,134.14,0.37398602]
[1720195840079,20.17,134.2,134.15,0.03]
[1720195840563,0.17,134.2,134.15,0.03]
[1720195841090,27.4495,134.24,134.15,0.03]
[1720195841273,20.17,134.23,134.15,0.03]
[1720195841692,27.6201,134.23,134.15,0.03]
[1720195842181,27.62,134.23,134.15,0.03]
[1720195842375,20.17,134.23,134.15,0.03]
[1720195842560,5.86769401,134.26,134.15,0.03]
[1720195842774,7.78285639,134.35,134.15,0.03]
[1720195842775,18.6179,134.28,134.15,0.03]
[1720195842992,7.4481,134.27,134.15,0.03]
[1720195843162,39.56791767,134.32,134.15,100.2]
[1720195843361,7.4471,134.28,134.15,0.2]
[1720195843662,7.4478,134.27,134.15,0.2]
[1720195844279,7.4472,134.28,134.15,0.2]
[1720195844582,7.4466,134.29,134.16,100.0]
[1720195844879,33.43694065,134.32,134.18,100.0]
[1720195844880,7.4459,134.31,134.18,100.0]
[1720195845081,7.446,134.3,134.2,6.386]
[1720195845455,7.4456,134.31,134.21,0.03]
[1720195846273,20.0,134.3,134.21,0.03]
[1720195846475,20.0,134.32,134.21,0.03]
[1720195846684,15.006,134.31,134.21,0.03]
[1720195846876,38.785,134.3,134.21,0.03]
[1720195847194,7.4483,134.26,134.21,0.03]
[1720195847369,0.17,134.25,134.21,0.03]
[1720195849072,181.9955,134.39,134.21,0.03]
[1720195849276,6.4438,134.36,134.23,100.0]
[1720195849468,7.4424,134.37,134.24,26.0168]
[1720195849665,18.5991,134.42,134.25,100.0]
[1720195849878,18.5991,134.42,134.26,0.17]
[1720195850080,7.4419,134.38,134.26,0.2]
[1720195850390,7.4419,134.38,134.27,0.03]
[1720195850992,7.4433,134.35,134.27,0.03]
[1720195851184,37.2025,134.4,134.27,0.03]
[1720195851370,7.4443,134.33,134.26,0.03]
[1720195851570,7.4444,134.33,134.28,0.03]
[1720195851784,27.445,134.32,134.25,0.03]
[1720195851971,27.445,134.32,134.29,0.03]
[1720195852171,27.4449,134.32,134.29,0.03]
[1720195852389,0.17,134.31,134.29,0.03]
[1720195854890,7.4433,134.35,134.29,0.03]
[1720195855190,18.6016,134.4,134.29,0.03]
[1720195855492,5.85531713,134.43,134.29,0.03]
[1720195855493,24.45311713,134.43,134.29,0.03]
[1720195855711,7.4416,134.38,134.29,0.03]
[1720195855889,7.441,134.39,134.29,0.03]
[1720195856264,7.4405,134.4,134.29,0.03]
[1720195857095,18.5978,134.43,134.29,0.03]
[1720195857270,7.4427,134.36,134.29,0.03]
[1720195857465,7.4434,134.35,134.29,0.03]
[1720195857683,7.4428,134.36,134.29,0.03]
[1720195858081,7.4427,134.36,134.29,0.03]
[1720195858282,0.17,134.35,134.29,0.03]
[1720195858495,7.6133,134.35,134.29,0.03]
[1720195858795,0.17,134.35,134.29,0.03]
[1720195860305,13.48610712,134.44,134.29,0.03]
[1720195860611,100.0,134.43,134.29,0.03]
[1720195860894,7.4435,134.35,134.29,0.03]
[1720195861099,18.6027,134.39,134.29,0.03]
[1720195861100,7.4443,134.34,134.29,0.03]
[1720195861332,18.6027,134.39,134.29,0.03]
[1720195861333,7.4432,134.36,134.29,0.03]
[1720195861484,7.4472,134.28,134.19,384.2]
[1720195861686,30.57,134.33,134.13,257.5]
[1720195861687,18.6146,134.31,134.14,390.47062443]
[1720195862013,20.17,134.3,134.14,384.57398602]
[1720195862317,18.6168,134.29,134.14,384.57398602]
[1720195862507,20.0,134.28,134.14,384.57398602]
[1720195862688,7.4483,134.26,134.14,384.57398602]
[1720195862885,20.0,134.28,134.14,384.57398602]
[1720195863200,0.17,134.27,134.14,384.57398602]
[1720195863783,20.17,134.28,134.14,384.57398602]
[1720195864513,7.4485,134.26,134.14,384.57398602]
[1720195864686,0.17,134.25,134.14,384.57398602]
[1720195864890,0.17,134.28,134.14,384.57398602]
[1720195866416,7.4489,134.25,134.14,384.57398602]
[1720195866588,20.17,134.24,134.14,384.57398602]
[1720195867406,0.17,134.24,134.14,384.57398602]
[1720195867624,7.6194,134.24,134.14,384.57398602]
[1720195867783,20.0,134.23,134.14,384.57398602]
[1720195868288,0.17,134.24,134.14,384.57398602]
[1720195868692,20.17,134.24,134.14,384.57398602]
[1720195868907,0.17,134.24,134.14,384.57398602]
[1720195869088,0.17,134.24,134.15,20.0]
[1720195869518,20.0,134.26,134.15,20.0]
[1720195869519,0.17,134.25,134.15,20.0]
[1720195870803,7.4493,134.24,134.15,20.0]
[1720195870990,7.619,134.25,134.15,20.0]
[1720195872111,0.17,134.25,134.15,20.0]
[1720195872899,0.17,134.25,134.15,404.2]
[1720195873622,20.0,134.28,134.15,404.2]
[1720195873811,27.4473,134.28,134.16,0.17]
[1720195874202,7.4476,134.27,134.16,0.17]
[1720195874636,7.4476,134.27,134.15,404.2]
[1720195874841,7.4484,134.26,134.16,16.6028]
[1720195875138,0.17,134.25,134.17,6.5346]
[1720195876219,20.17,134.25,134.17,6.5346]
[1720195876406,7.4504,134.23,134.17,6.5346]
[1720195876611,20.17,134.22,134.17,6.5346]
[1720195876810,0.17,134.21,134.17,6.5346]
[1720195881041,0.17,134.21,134.16,16.6028]
[1720195882207,0.17,134.22,134.16,16.6028]
[1720195883532,7.6206,134.22,134.16,16.6028]
[1720195886202,0.17,134.22,134.16,16.6028]
[1720195887128,7.6205,134.22,134.16,16.6028]
[1720195887498,0.17,134.22,134.16,16.6028]
[1720195888401,7.6205,134.22,134.16,16.6028]
[1720195888803,0.17,134.22,134.16,16.6028]
[1720195890030,7.4525,134.19,134.14,0.37398602]
[1720195890325,7.76757553,134.21,134.14,0.37398602]
[1720195890533,20.0,134.2,134.14,0.37398602]
[1720195890701,1.8771115,134.26,134.14,0.37398602]
[1720195890901,7.4493,134.24,134.14,0.37398602]
[1720195891130,18.619,134.28,134.14,0.37398602]
[1720195891323,7.4488,134.25,134.14,0.37398602]
[1720195891834,7.4483,134.26,134.14,0.37398602]
[1720195892031,7.4504,134.22,134.14,0.37398602]
[1720195892423,7.4501,134.23,134.14,0.37398602]
[1720195892929,7.4506,134.22,134.14,0.37398602]
[1720195893134,0.17,134.21,134.14,0.37398602]
[1720195894017,20.17,134.22,134.14,0.37398602]
[1720195894216,0.17,134.22,134.14,0.37398602]
[1720195894610,20.0,134.24,134.14,0.37398602]
[1720195895715,20.0,134.25,134.14,0.37398602]
[1720195896013,7.4444,134.33,134.2,100.0]
[1720195896211,7.4438,134.34,134.21,20.17]
[1720195896633,18.605,134.38,134.21,20.17]
[1720195896634,7.4444,134.33,134.21,20.17]
[1720195896836,7.4439,134.34,134.21,20.17]
[1720195897023,7.4439,134.34,134.21,39.50472473]
[1720195897545,18.605,134.38,134.21,39.50472473]
[1720195898240,7.4438,134.34,134.21,39.50472473]
[1720195899141,18.605,134.38,134.22,100.0]
[1720195899346,7.4432,134.36,134.22,100.0]
[1720195899648,18.605,134.38,134.22,100.0]
[1720195899649,7.4442,134.34,134.22,484.2]
[1720195899846,7.4439,134.34,134.22,484.2]
[1720195900057,7.4444,134.33,134.22,484.2]
[1720195900226,7.4439,134.34,134.22,484.2]
[1720195900425,0.17,134.32,134.22,484.2]
[1720195900741,0.17,134.33,134.22,484.2]
[1720195900933,0.17,134.33,134.22,384.2]
[1720195901945,7.6144,134.33,134.22,384.2]
[1720195902732,0.17,134.33,134.22,384.2]
[1720195902926,20.17,134.33,134.22,384.2]
[1720195904452,7.443,134.36,134.22,484.2]
[1720195904656,7.443,134.36,134.23,20.17]